{"text_format":"3","workbook":"xlsx","n_sheets":1,"sheets":["งบประมาณครอบครัวรายเดือน"],"not_rendered":{"defined_names":1},"read":"whole","date_system":"1900"}

{"sheet":"งบประมาณครอบครัวรายเดือน","index":0,"n_rows":68,"n_cols":9,"rows_kept":68,"merged":[[0,0,0,6],[2,0,2,1],[2,5,2,6],[8,5,8,6],[18,0,18,3],[27,5,27,8],[29,0,29,3],[36,0,36,3],[37,5,37,8],[42,0,42,3],[44,5,44,8],[54,0,54,3],[54,5,54,8],[61,0,61,3],[62,5,62,8]]}
["งบประมาณครอบครัวรายเดือน"]
[]
["ค่าใช้จ่ายที่คาดการณ์รวม",null,"ค่าใช้จ่ายที่แท้จริงรวม","ยอดแตกต่างรวม",null,"รายได้ประจำเดือนที่คาดการณ์"]
[null,{"$f":"Housing[[#Totals],[ค่าใช้จ่ายที่คาดการณ์]]+Transportation[[#Totals],[ค่าใช้จ่ายที่คาดการณ์]]+Insurance[[#Totals],[ค่าใช้จ่ายที่คาดการณ์]]+Food[[#Totals],[ค่าใช้จ่ายที่คาดการณ์]]+Children[[#Totals],[ค่าใช้จ่ายที่คาดการณ์]]+Legal[[#Totals],[ค่าใช้จ่ายที่คาดการณ์]]+Savings[[#Totals],[ค่าใช้จ่ายที่คาดการณ์]]+Loans[[#Totals],[ค่าใช้จ่ายที่คาดการณ์]]+Entertainment[[#Totals],[ค่าใช้จ่ายที่คาดการณ์]]+Taxes[[#Totals],[ค่าใช้จ่ายที่คาดการณ์]]+PersonalCare[[#Totals],[ค่าใช้จ่ายที่คาดการณ์]]+Pets[[#Totals],[ค่าใช้จ่ายที่คาดการณ์]]+Gifts[[#Totals],[ค่าใช้จ่ายที่คาดการณ์]]","v":{"v":1203,"d":"฿1,203"}},{"$f":"Housing[[#Totals],[ค่าใช้จ่ายที่แท้จริง]]+Transportation[[#Totals],[ค่าใช้จ่ายที่แท้จริง]]+Insurance[[#Totals],[ค่าใช้จ่ายที่แท้จริง]]+Food[[#Totals],[ค่าใช้จ่ายที่แท้จริง]]+Children[[#Totals],[ค่าใช้จ่ายที่แท้จริง]]+Legal[[#Totals],[ค่าใช้จ่ายที่แท้จริง]]+Savings[[#Totals],[ค่าใช้จ่ายที่แท้จริง]]+Loans[[#Totals],[ค่าใช้จ่ายที่แท้จริง]]+Entertainment[[#Totals],[ค่าใช้จ่ายที่แท้จริง]]+Taxes[[#Totals],[ค่าใช้จ่ายที่แท้จริง]]+PersonalCare[[#Totals],[ค่าใช้จ่ายที่แท้จริง]]+Pets[[#Totals],[ค่าใช้จ่ายที่แท้จริง]]+Gifts[[#Totals],[ค่าใช้จ่ายที่แท้จริง]]","v":{"v":1317,"d":"฿1,317"}},{"$f":"Housing[[#Totals],[ยอดแตกต่าง]]+Transportation[[#Totals],[ยอดแตกต่าง]]+Insurance[[#Totals],[ยอดแตกต่าง]]+Food[[#Totals],[ยอดแตกต่าง]]+Children[[#Totals],[ยอดแตกต่าง]]+Legal[[#Totals],[ยอดแตกต่าง]]+Savings[[#Totals],[ยอดแตกต่าง]]+Loans[[#Totals],[ยอดแตกต่าง]]+Entertainment[[#Totals],[ยอดแตกต่าง]]+Taxes[[#Totals],[ยอดแตกต่าง]]+PersonalCare[[#Totals],[ยอดแตกต่าง]]+Pets[[#Totals],[ยอดแตกต่าง]]+Gifts[[#Totals],[ยอดแตกต่าง]]","v":{"v":-114,"d":"(฿114)"}},null,"รายได้ 1",{"v":4000,"d":"฿4,000"}]
[{"$nulls":5},"รายได้ 2",{"v":1200,"d":"฿1,200"}]
["ที่พัก","ค่าใช้จ่ายที่คาดการณ์","ค่าใช้จ่ายที่แท้จริง","ยอดแตกต่าง",null,"รายได้เสริม",{"v":300,"d":"฿300"}]
["การจำนองหรือเช่า",{"v":1000,"d":"฿1,000"},{"v":1000,"d":"฿1,000"},{"$f":"Housing[ค่าใช้จ่ายที่คาดการณ์]-Housing[ค่าใช้จ่ายที่แท้จริง]","v":{"v":0,"d":"฿0"}},null,"รายได้ประจำเดือนรวม",{"$f":"SUM(G4:G6)","v":{"v":5500,"d":"฿5,500"}}]
["การจำนองหรือเช่าช่วง",{"v":0,"d":"฿0"},{"v":0,"d":"฿0"},{"$f":"Housing[ค่าใช้จ่ายที่คาดการณ์]-Housing[ค่าใช้จ่ายที่แท้จริง]","v":{"v":0,"d":"฿0"}}]
["โทรศัพท์",{"v":62,"d":"฿62"},{"v":100,"d":"฿100"},{"$f":"Housing[ค่าใช้จ่ายที่คาดการณ์]-Housing[ค่าใช้จ่ายที่แท้จริง]","v":{"v":-38,"d":"-฿38"}},null,"รายได้ประจำเดือนที่แท้จริง"]
["ไฟฟ้า",{"v":44,"d":"฿44"},{"v":125,"d":"฿125"},{"$f":"Housing[ค่าใช้จ่ายที่คาดการณ์]-Housing[ค่าใช้จ่ายที่แท้จริง]","v":{"v":-81,"d":"-฿81"}},null,"รายได้ 1",{"v":4000,"d":"฿4,000"}]
["แก๊ส",{"v":22,"d":"฿22"},{"v":35,"d":"฿35"},{"$f":"Housing[ค่าใช้จ่ายที่คาดการณ์]-Housing[ค่าใช้จ่ายที่แท้จริง]","v":{"v":-13,"d":"-฿13"}},null,"รายได้ 2",{"v":1200,"d":"฿1,200"}]
["น้ำและน้ำเสีย",{"v":8,"d":"฿8"},{"v":8,"d":"฿8"},{"$f":"Housing[ค่าใช้จ่ายที่คาดการณ์]-Housing[ค่าใช้จ่ายที่แท้จริง]","v":{"v":0,"d":"฿0"}},null,"รายได้เสริม",{"v":300,"d":"฿300"}]
["เคเบิล",{"v":34,"d":"฿34"},{"v":39,"d":"฿39"},{"$f":"Housing[ค่าใช้จ่ายที่คาดการณ์]-Housing[ค่าใช้จ่ายที่แท้จริง]","v":{"v":-5,"d":"-฿5"}},null,"รายได้ประจำเดือนรวม",{"$f":"SUM(G10:G12)","v":{"v":5500,"d":"฿5,500"}}]
["การกำจัดของเสีย",{"v":10,"d":"฿10"},{"v":10,"d":"฿10"},{"$f":"Housing[ค่าใช้จ่ายที่คาดการณ์]-Housing[ค่าใช้จ่ายที่แท้จริง]","v":{"v":0,"d":"฿0"}}]
["การบำรุงรักษาหรือซ่อมแซม",{"v":23,"d":"฿23"},{"v":0,"d":"฿0"},{"$f":"Housing[ค่าใช้จ่ายที่คาดการณ์]-Housing[ค่าใช้จ่ายที่แท้จริง]","v":{"v":23,"d":"฿23"}},null,"ยอดดุลที่คาดการณ์\n",{"$f":"SUM(G7-B4)","v":{"v":4297,"d":"฿4,297"}}]
["เบ็ดเตล็ด",{"v":0,"d":"฿0"},{"v":0,"d":"฿0"},{"$f":"Housing[ค่าใช้จ่ายที่คาดการณ์]-Housing[ค่าใช้จ่ายที่แท้จริง]","v":{"v":0,"d":"฿0"}},null,"ยอดดุลที่แท้จริง",{"$f":"SUM(G13-C4)","v":{"v":4183,"d":"฿4,183"}}]
["อื่นๆ",{"v":0,"d":"฿0"},{"v":0,"d":"฿0"},{"$f":"Housing[ค่าใช้จ่ายที่คาดการณ์]-Housing[ค่าใช้จ่ายที่แท้จริง]","v":{"v":0,"d":"฿0"}},null,"ยอดแตกต่าง",{"$f":"SUM(G16-G15)","v":{"v":-114,"d":"(฿114)"}}]
["รวม",{"$f":"SUBTOTAL(109,Housing[ค่าใช้จ่ายที่คาดการณ์])","v":{"v":1203,"d":"฿1,203"}},{"$f":"SUBTOTAL(109,Housing[ค่าใช้จ่ายที่แท้จริง])","v":{"v":1317,"d":"฿1,317"}},{"$f":"SUBTOTAL(109,Housing[ยอดแตกต่าง])","v":{"v":-114,"d":"(฿114)"}}]
[]
["การขนส่ง","ค่าใช้จ่ายที่คาดการณ์","ค่าใช้จ่ายที่แท้จริง","ยอดแตกต่าง",null,"เงินกู้","ค่าใช้จ่ายที่คาดการณ์","ค่าใช้จ่ายที่แท้จริง","ยอดแตกต่าง"]
["การชำระค่ารถ 1",null,null,{"$f":"Transportation[ค่าใช้จ่ายที่คาดการณ์]-Transportation[ค่าใช้จ่ายที่แท้จริง]","v":{"v":0,"d":"฿0"}},null,"ส่วนบุคคล",null,null,{"$f":"Loans[ค่าใช้จ่ายที่คาดการณ์]-Loans[ค่าใช้จ่ายที่แท้จริง]","v":{"v":0,"d":"฿0"}}]
["การชำระค่ารถ 2",null,null,{"$f":"Transportation[ค่าใช้จ่ายที่คาดการณ์]-Transportation[ค่าใช้จ่ายที่แท้จริง]","v":{"v":0,"d":"฿0"}},null,"นักเรียน",null,null,{"$f":"Loans[ค่าใช้จ่ายที่คาดการณ์]-Loans[ค่าใช้จ่ายที่แท้จริง]","v":{"v":0,"d":"฿0"}}]
["ค่าโดยสารรถประจำทาง/แท็กซี่",null,null,{"$f":"Transportation[ค่าใช้จ่ายที่คาดการณ์]-Transportation[ค่าใช้จ่ายที่แท้จริง]","v":{"v":0,"d":"฿0"}},null,"บัตรเครดิต",null,null,{"$f":"Loans[ค่าใช้จ่ายที่คาดการณ์]-Loans[ค่าใช้จ่ายที่แท้จริง]","v":{"v":0,"d":"฿0"}}]
["ประกันภัย",null,null,{"$f":"Transportation[ค่าใช้จ่ายที่คาดการณ์]-Transportation[ค่าใช้จ่ายที่แท้จริง]","v":{"v":0,"d":"฿0"}},null,"บัตรเครดิต",null,null,{"$f":"Loans[ค่าใช้จ่ายที่คาดการณ์]-Loans[ค่าใช้จ่ายที่แท้จริง]","v":{"v":0,"d":"฿0"}}]
["ใบอนุญาต",null,null,{"$f":"Transportation[ค่าใช้จ่ายที่คาดการณ์]-Transportation[ค่าใช้จ่ายที่แท้จริง]","v":{"v":0,"d":"฿0"}},null,"บัตรเครดิต",null,null,{"$f":"Loans[ค่าใช้จ่ายที่คาดการณ์]-Loans[ค่าใช้จ่ายที่แท้จริง]","v":{"v":0,"d":"฿0"}}]
["น้ำมัน",null,null,{"$f":"Transportation[ค่าใช้จ่ายที่คาดการณ์]-Transportation[ค่าใช้จ่ายที่แท้จริง]","v":{"v":0,"d":"฿0"}},null,"อื่นๆ",null,null,{"$f":"Loans[ค่าใช้จ่ายที่คาดการณ์]-Loans[ค่าใช้จ่ายที่แท้จริง]","v":{"v":0,"d":"฿0"}}]
["การบำรุงรักษา",null,null,{"$f":"Transportation[ค่าใช้จ่ายที่คาดการณ์]-Transportation[ค่าใช้จ่ายที่แท้จริง]","v":{"v":0,"d":"฿0"}},null,"รวม",{"$f":"SUBTOTAL(109,Loans[ค่าใช้จ่ายที่คาดการณ์])","v":{"v":0,"d":"฿0"}},{"$f":"SUBTOTAL(109,Loans[ค่าใช้จ่ายที่แท้จริง])","v":{"v":0,"d":"฿0"}},{"$f":"SUBTOTAL(109,Loans[ยอดแตกต่าง])","v":{"v":0,"d":"฿0"}}]
["อื่นๆ",null,null,{"$f":"Transportation[ค่าใช้จ่ายที่คาดการณ์]-Transportation[ค่าใช้จ่ายที่แท้จริง]","v":{"v":0,"d":"฿0"}}]
["รวม",{"$f":"SUBTOTAL(109,Transportation[ค่าใช้จ่ายที่คาดการณ์])","v":{"v":0,"d":"฿0"}},{"$f":"SUBTOTAL(109,Transportation[ค่าใช้จ่ายที่แท้จริง])","v":{"v":0,"d":"฿0"}},{"$f":"SUBTOTAL(109,Transportation[ยอดแตกต่าง])","v":{"v":0,"d":"฿0"}},null,"ความบันเทิง","ค่าใช้จ่ายที่คาดการณ์","ค่าใช้จ่ายที่แท้จริง","ยอดแตกต่าง"]
[{"$nulls":5},"วิดีโอ/ดีวีดี",null,null,{"$f":"Entertainment[ค่าใช้จ่ายที่คาดการณ์]-Entertainment[ค่าใช้จ่ายที่แท้จริง]","v":{"v":0,"d":"฿0"}}]
["ประกันภัย","ค่าใช้จ่ายที่คาดการณ์","ค่าใช้จ่ายที่แท้จริง","ยอดแตกต่าง",null,"ซีดี",null,null,{"$f":"Entertainment[ค่าใช้จ่ายที่คาดการณ์]-Entertainment[ค่าใช้จ่ายที่แท้จริง]","v":{"v":0,"d":"฿0"}}]
["บ้าน",null,null,{"$f":"Insurance[ค่าใช้จ่ายที่คาดการณ์]-Insurance[ค่าใช้จ่ายที่แท้จริง]","v":{"v":0,"d":"฿0"}},null,"ภาพยนตร์",null,null,{"$f":"Entertainment[ค่าใช้จ่ายที่คาดการณ์]-Entertainment[ค่าใช้จ่ายที่แท้จริง]","v":{"v":0,"d":"฿0"}}]
["สุขภาพ",null,null,{"$f":"Insurance[ค่าใช้จ่ายที่คาดการณ์]-Insurance[ค่าใช้จ่ายที่แท้จริง]","v":{"v":0,"d":"฿0"}},null,"คอนเสิร์ต",null,null,{"$f":"Entertainment[ค่าใช้จ่ายที่คาดการณ์]-Entertainment[ค่าใช้จ่ายที่แท้จริง]","v":{"v":0,"d":"฿0"}}]
["ชีวิต",null,null,{"$f":"Insurance[ค่าใช้จ่ายที่คาดการณ์]-Insurance[ค่าใช้จ่ายที่แท้จริง]","v":{"v":0,"d":"฿0"}},null,"กิจกรรมกีฬา",null,null,{"$f":"Entertainment[ค่าใช้จ่ายที่คาดการณ์]-Entertainment[ค่าใช้จ่ายที่แท้จริง]","v":{"v":0,"d":"฿0"}}]
["อื่นๆ",null,null,{"$f":"Insurance[ค่าใช้จ่ายที่คาดการณ์]-Insurance[ค่าใช้จ่ายที่แท้จริง]","v":{"v":0,"d":"฿0"}},null,"โรงละครสด",null,null,{"$f":"Entertainment[ค่าใช้จ่ายที่คาดการณ์]-Entertainment[ค่าใช้จ่ายที่แท้จริง]","v":{"v":0,"d":"฿0"}}]
["รวม",{"$f":"SUBTOTAL(109,Insurance[ค่าใช้จ่ายที่คาดการณ์])","v":{"v":0,"d":"฿0"}},{"$f":"SUBTOTAL(109,Insurance[ค่าใช้จ่ายที่แท้จริง])","v":{"v":0,"d":"฿0"}},{"$f":"SUBTOTAL(109,Insurance[ยอดแตกต่าง])","v":{"v":0,"d":"฿0"}},null,"อื่นๆ",null,null,{"$f":"Entertainment[ค่าใช้จ่ายที่คาดการณ์]-Entertainment[ค่าใช้จ่ายที่แท้จริง]","v":{"v":0,"d":"฿0"}}]
[{"$nulls":5},"รวม",{"$f":"SUBTOTAL(109,Entertainment[ค่าใช้จ่ายที่คาดการณ์])","v":{"v":0,"d":"฿0"}},{"$f":"SUBTOTAL(109,Entertainment[ค่าใช้จ่ายที่แท้จริง])","v":{"v":0,"d":"฿0"}},{"$f":"SUBTOTAL(109,Entertainment[ยอดแตกต่าง])","v":{"v":0,"d":"฿0"}}]
["อาหาร","ค่าใช้จ่ายที่คาดการณ์","ค่าใช้จ่ายที่แท้จริง","ยอดแตกต่าง"]
["ของชำ",null,null,{"$f":"Food[ค่าใช้จ่ายที่คาดการณ์]-Food[ค่าใช้จ่ายที่แท้จริง]","v":{"v":0,"d":"฿0"}},null,"ภาษี","ค่าใช้จ่ายที่คาดการณ์","ค่าใช้จ่ายที่แท้จริง","ยอดแตกต่าง"]
["ทานอาหารนอกบ้าน",null,null,{"$f":"Food[ค่าใช้จ่ายที่คาดการณ์]-Food[ค่าใช้จ่ายที่แท้จริง]","v":{"v":0,"d":"฿0"}},null,"รัฐบาลกลาง",null,null,{"$f":"Taxes[ค่าใช้จ่ายที่คาดการณ์]-Taxes[ค่าใช้จ่ายที่แท้จริง]","v":{"v":0,"d":"฿0"}}]
["อื่นๆ",null,null,{"$f":"Food[ค่าใช้จ่ายที่คาดการณ์]-Food[ค่าใช้จ่ายที่แท้จริง]","v":{"v":0,"d":"฿0"}},null,"รัฐ",null,null,{"$f":"Taxes[ค่าใช้จ่ายที่คาดการณ์]-Taxes[ค่าใช้จ่ายที่แท้จริง]","v":{"v":0,"d":"฿0"}}]
["รวม",{"$f":"SUBTOTAL(109,Food[ค่าใช้จ่ายที่คาดการณ์])","v":{"v":0,"d":"฿0"}},{"$f":"SUBTOTAL(109,Food[ค่าใช้จ่ายที่แท้จริง])","v":{"v":0,"d":"฿0"}},{"$f":"SUBTOTAL(109,Food[ยอดแตกต่าง])","v":{"v":0,"d":"฿0"}},null,"ท้องถิ่น",null,null,{"$f":"Taxes[ค่าใช้จ่ายที่คาดการณ์]-Taxes[ค่าใช้จ่ายที่แท้จริง]","v":{"v":0,"d":"฿0"}}]
[{"$nulls":5},"อื่นๆ",null,null,{"$f":"Taxes[ค่าใช้จ่ายที่คาดการณ์]-Taxes[ค่าใช้จ่ายที่แท้จริง]","v":{"v":0,"d":"฿0"}}]
["เด็ก","ค่าใช้จ่ายที่คาดการณ์","ค่าใช้จ่ายที่แท้จริง","ยอดแตกต่าง",null,"รวม",{"$f":"SUBTOTAL(109,Taxes[ค่าใช้จ่ายที่คาดการณ์])","v":{"v":0,"d":"฿0"}},{"$f":"SUBTOTAL(109,Taxes[ค่าใช้จ่ายที่แท้จริง])","v":{"v":0,"d":"฿0"}},{"$f":"SUBTOTAL(109,Taxes[ยอดแตกต่าง])","v":{"v":0,"d":"฿0"}}]
["ยา",null,null,{"$f":"Children[ค่าใช้จ่ายที่คาดการณ์]-Children[ค่าใช้จ่ายที่แท้จริง]","v":{"v":0,"d":"฿0"}}]
["เสื้อผ้า",null,null,{"$f":"Children[ค่าใช้จ่ายที่คาดการณ์]-Children[ค่าใช้จ่ายที่แท้จริง]","v":{"v":0,"d":"฿0"}},null,"ค่าดูแลส่วนบุคคล","ค่าใช้จ่ายที่คาดการณ์","ค่าใช้จ่ายที่แท้จริง","ยอดแตกต่าง"]
["ค่าเล่าเรียน",null,null,{"$f":"Children[ค่าใช้จ่ายที่คาดการณ์]-Children[ค่าใช้จ่ายที่แท้จริง]","v":{"v":0,"d":"฿0"}},null,"ยา",null,null,{"$f":"PersonalCare[ค่าใช้จ่ายที่คาดการณ์]-PersonalCare[ค่าใช้จ่ายที่แท้จริง]","v":{"v":0,"d":"฿0"}}]
["อุปกรณ์การเรียน",null,null,{"$f":"Children[ค่าใช้จ่ายที่คาดการณ์]-Children[ค่าใช้จ่ายที่แท้จริง]","v":{"v":0,"d":"฿0"}},null,"ตัดผม/ทำเล็บ",null,null,{"$f":"PersonalCare[ค่าใช้จ่ายที่คาดการณ์]-PersonalCare[ค่าใช้จ่ายที่แท้จริง]","v":{"v":0,"d":"฿0"}}]
["ค่าธรรมเนียมองค์กร",null,null,{"$f":"Children[ค่าใช้จ่ายที่คาดการณ์]-Children[ค่าใช้จ่ายที่แท้จริง]","v":{"v":0,"d":"฿0"}},null,"เสื้อผ้า",null,null,{"$f":"PersonalCare[ค่าใช้จ่ายที่คาดการณ์]-PersonalCare[ค่าใช้จ่ายที่แท้จริง]","v":{"v":0,"d":"฿0"}}]
["เงินค่าอาหารกลางวัน",null,null,{"$f":"Children[ค่าใช้จ่ายที่คาดการณ์]-Children[ค่าใช้จ่ายที่แท้จริง]","v":{"v":0,"d":"฿0"}},null,"ซักแห้ง",null,null,{"$f":"PersonalCare[ค่าใช้จ่ายที่คาดการณ์]-PersonalCare[ค่าใช้จ่ายที่แท้จริง]","v":{"v":0,"d":"฿0"}}]
["ค่าดูแลเด็ก",null,null,{"$f":"Children[ค่าใช้จ่ายที่คาดการณ์]-Children[ค่าใช้จ่ายที่แท้จริง]","v":{"v":0,"d":"฿0"}},null,"สโมสรสุขภาพ",null,null,{"$f":"PersonalCare[ค่าใช้จ่ายที่คาดการณ์]-PersonalCare[ค่าใช้จ่ายที่แท้จริง]","v":{"v":0,"d":"฿0"}}]
["ของเล่น/เกม",null,null,{"$f":"Children[ค่าใช้จ่ายที่คาดการณ์]-Children[ค่าใช้จ่ายที่แท้จริง]","v":{"v":0,"d":"฿0"}},null,"ค่าธรรมเนียมองค์กร",null,null,{"$f":"PersonalCare[ค่าใช้จ่ายที่คาดการณ์]-PersonalCare[ค่าใช้จ่ายที่แท้จริง]","v":{"v":0,"d":"฿0"}}]
["อื่นๆ",null,null,{"$f":"Children[ค่าใช้จ่ายที่คาดการณ์]-Children[ค่าใช้จ่ายที่แท้จริง]","v":{"v":0,"d":"฿0"}},null,"อื่นๆ",null,null,{"$f":"PersonalCare[ค่าใช้จ่ายที่คาดการณ์]-PersonalCare[ค่าใช้จ่ายที่แท้จริง]","v":{"v":0,"d":"฿0"}}]
["รวม",{"$f":"SUBTOTAL(109,Children[ค่าใช้จ่ายที่คาดการณ์])","v":{"v":0,"d":"฿0"}},{"$f":"SUBTOTAL(109,Children[ค่าใช้จ่ายที่แท้จริง])","v":{"v":0,"d":"฿0"}},{"$f":"SUBTOTAL(109,Children[ยอดแตกต่าง])","v":{"v":0,"d":"฿0"}},null,"รวม",{"$f":"SUBTOTAL(109,PersonalCare[ค่าใช้จ่ายที่คาดการณ์])","v":{"v":0,"d":"฿0"}},{"$f":"SUBTOTAL(109,PersonalCare[ค่าใช้จ่ายที่แท้จริง])","v":{"v":0,"d":"฿0"}},{"$f":"SUBTOTAL(109,PersonalCare[ยอดแตกต่าง])","v":{"v":0,"d":"฿0"}}]
[]
["กฎหมาย","ค่าใช้จ่ายที่คาดการณ์","ค่าใช้จ่ายที่แท้จริง","ยอดแตกต่าง",null,"สัตว์เลี้ยง","ค่าใช้จ่ายที่คาดการณ์","ค่าใช้จ่ายที่แท้จริง","ยอดแตกต่าง"]
["ค่าทนาย",null,null,{"$f":"Legal[ค่าใช้จ่ายที่คาดการณ์]-Legal[ค่าใช้จ่ายที่แท้จริง]","v":{"v":0,"d":"฿0"}},null,"อาหาร",null,null,{"$f":"Pets[ค่าใช้จ่ายที่คาดการณ์]-Pets[ค่าใช้จ่ายที่แท้จริง]","v":{"v":0,"d":"฿0"}}]
["ค่าเลี้ยงดู",null,null,{"$f":"Legal[ค่าใช้จ่ายที่คาดการณ์]-Legal[ค่าใช้จ่ายที่แท้จริง]","v":{"v":0,"d":"฿0"}},null,"ยา",null,null,{"$f":"Pets[ค่าใช้จ่ายที่คาดการณ์]-Pets[ค่าใช้จ่ายที่แท้จริง]","v":{"v":0,"d":"฿0"}}]
["การชำระ",null,null,{"$f":"Legal[ค่าใช้จ่ายที่คาดการณ์]-Legal[ค่าใช้จ่ายที่แท้จริง]","v":{"v":0,"d":"฿0"}},null,"เสริมสวย",null,null,{"$f":"Pets[ค่าใช้จ่ายที่คาดการณ์]-Pets[ค่าใช้จ่ายที่แท้จริง]","v":{"v":0,"d":"฿0"}}]
["อื่นๆ",null,null,{"$f":"Legal[ค่าใช้จ่ายที่คาดการณ์]-Legal[ค่าใช้จ่ายที่แท้จริง]","v":{"v":0,"d":"฿0"}},null,"ของเล่น",null,null,{"$f":"Pets[ค่าใช้จ่ายที่คาดการณ์]-Pets[ค่าใช้จ่ายที่แท้จริง]","v":{"v":0,"d":"฿0"}}]
["รวม",{"$f":"SUBTOTAL(109,Legal[ค่าใช้จ่ายที่คาดการณ์])","v":{"v":0,"d":"฿0"}},{"$f":"SUBTOTAL(109,Legal[ค่าใช้จ่ายที่แท้จริง])","v":{"v":0,"d":"฿0"}},{"$f":"SUBTOTAL(109,Legal[ยอดแตกต่าง])","v":{"v":0,"d":"฿0"}},null,"อื่นๆ",null,null,{"$f":"Pets[ค่าใช้จ่ายที่คาดการณ์]-Pets[ค่าใช้จ่ายที่แท้จริง]","v":{"v":0,"d":"฿0"}}]
[{"$nulls":5},"รวม",{"$f":"SUBTOTAL(109,Pets[ค่าใช้จ่ายที่คาดการณ์])","v":{"v":0,"d":"฿0"}},{"$f":"SUBTOTAL(109,Pets[ค่าใช้จ่ายที่แท้จริง])","v":{"v":0,"d":"฿0"}},{"$f":"SUBTOTAL(109,Pets[ยอดแตกต่าง])","v":{"v":0,"d":"฿0"}}]
["การออม/การลงทุน","ค่าใช้จ่ายที่คาดการณ์","ค่าใช้จ่ายที่แท้จริง","ยอดแตกต่าง"]
["บัญชีเกษียณ",null,null,{"$f":"Savings[ค่าใช้จ่ายที่คาดการณ์]-Savings[ค่าใช้จ่ายที่แท้จริง]","v":{"v":0,"d":"฿0"}},null,"ของขวัญและการบริจาค","ค่าใช้จ่ายที่คาดการณ์","ค่าใช้จ่ายที่แท้จริง","ยอดแตกต่าง"]
["บัญชีลงทุน",null,null,{"$f":"Savings[ค่าใช้จ่ายที่คาดการณ์]-Savings[ค่าใช้จ่ายที่แท้จริง]","v":{"v":0,"d":"฿0"}},null,"การกุศล 1",null,null,{"$f":"Gifts[ค่าใช้จ่ายที่คาดการณ์]-Gifts[ค่าใช้จ่ายที่แท้จริง]","v":{"v":0,"d":"฿0"}}]
["วิทยาลัย",null,null,{"$f":"Savings[ค่าใช้จ่ายที่คาดการณ์]-Savings[ค่าใช้จ่ายที่แท้จริง]","v":{"v":0,"d":"฿0"}},null,"การกุศล 2",null,null,{"$f":"Gifts[ค่าใช้จ่ายที่คาดการณ์]-Gifts[ค่าใช้จ่ายที่แท้จริง]","v":{"v":0,"d":"฿0"}}]
["อื่นๆ",null,null,{"$f":"Savings[ค่าใช้จ่ายที่คาดการณ์]-Savings[ค่าใช้จ่ายที่แท้จริง]","v":{"v":0,"d":"฿0"}},null,"การกุศล 3",null,null,{"$f":"Gifts[ค่าใช้จ่ายที่คาดการณ์]-Gifts[ค่าใช้จ่ายที่แท้จริง]","v":{"v":0,"d":"฿0"}}]
["รวม",{"$f":"SUBTOTAL(109,Savings[ค่าใช้จ่ายที่คาดการณ์])","v":{"v":0,"d":"฿0"}},{"$f":"SUBTOTAL(109,Savings[ค่าใช้จ่ายที่แท้จริง])","v":{"v":0,"d":"฿0"}},{"$f":"SUBTOTAL(109,Savings[ยอดแตกต่าง])","v":{"v":0,"d":"฿0"}},null,"รวม",{"$f":"SUBTOTAL(109,Gifts[ค่าใช้จ่ายที่คาดการณ์])","v":{"v":0,"d":"฿0"}},{"$f":"SUBTOTAL(109,Gifts[ค่าใช้จ่ายที่แท้จริง])","v":{"v":0,"d":"฿0"}},{"$f":"SUBTOTAL(109,Gifts[ยอดแตกต่าง])","v":{"v":0,"d":"฿0"}}]